fUSD/lending_fUSD_20250108
["ID","MTS","AMOUNT","RATE_DAILY","PERIOD"]
[348156255,1736358648473,-500.0,0.00010172,2]
[348156256,1736358648483,-500.0,0.00010172,2]
[348156257,1736358648492,-500.0,0.00010172,2]
[348156258,1736358648502,-500.0,0.00010172,2]
[348156259,1736358648512,-500.0,0.00010172,2]
[348156260,1736358648521,-613.51,0.00010172,2]
[348156261,1736358648531,-500.0,0.00010172,2]
[348156262,1736358648541,-500.0,0.00010172,2]
[348156263,1736358648551,-500.0,0.00010172,2]
[348156264,1736358648560,-500.0,0.00010172,2]
[348156265,1736358648570,-652.44,0.00010172,2]
[348156266,1736358648579,-500.0,0.00010172,2]
[348156267,1736358648588,-660.33,0.00010172,2]
[348156268,1736358648598,-669.83,0.00010172,2]
[348156269,1736358648607,-500.0,0.00010172,2]
[348156270,1736358648616,-500.0,0.00010172,2]
[348156271,1736358648625,-500.0,0.00010172,2]
[348156272,1736358648637,-641.41660812,0.00010172,2]
[348156273,1736358648647,-500.0,0.00010172,2]
[348156274,1736358648656,-505.03558174,0.00010172,2]
[348156275,1736358648665,-500.0,0.00010172,2]
[348156276,1736358648675,-500.0,0.00010172,2]
[348156277,1736358648684,-500.0,0.00010172,2]
[348156278,1736358648694,-500.0,0.00010172,2]
[348156279,1736358648704,-500.0,0.00010172,2]
[348156280,1736358648713,-500.0,0.00010172,2]
[348156281,1736358648723,-500.0,0.00010172,2]
[348156282,1736358648732,-500.0,0.00010172,2]
[348156283,1736358648741,-500.0,0.00010172,2]
[348156284,1736358648751,-500.0,0.00010172,2]
[348156285,1736358648760,-500.0,0.00010172,2]
[348156286,1736358648770,-500.0,0.00010172,2]
[348156287,1736358648779,-500.0,0.00010172,2]
[348156288,1736358648790,-500.0,0.00010172,2]
[348156289,1736358648804,-500.0,0.00010172,2]
[348156290,1736358648813,-500.0,0.00010172,2]
[348156291,1736358648823,-500.0,0.00010172,2]
[348156292,1736358648833,-500.0,0.00010172,2]
[348156293,1736358648842,-500.0,0.00010172,2]
[348156294,1736358648852,-500.0,0.00010172,2]
[348156295,1736358648861,-500.0,0.00010172,2]
[348156296,1736358648870,-732.89,0.00010172,2]
[348156297,1736358648881,-500.0,0.00010172,2]
[348156298,1736358648893,-668.24,0.00010172,2]
[348156299,1736358648902,-500.0,0.00010172,2]
[348156300,1736358648911,-551.84,0.00010172,2]
[348156301,1736358648921,-500.0,0.00010172,2]
[348156302,1736358648930,-500.0,0.00010172,2]
[348156303,1736358648940,-500.0,0.00010172,2]
[348156304,1736358648949,-500.0,0.00010172,2]
[348156305,1736358648959,-500.0,0.00010172,2]
[348156306,1736358648969,-500.0,0.00010172,2]
[348156307,1736358648978,-500.0,0.00010172,2]
[348156308,1736358648989,-53635.67021287,0.0001018,2]
[348156309,1736358648998,-555.04,0.0001021,2]
[348156310,1736358649008,-309.88,0.00010261,2]
[348156311,1736358649018,-500.0,0.00010261,2]
[348156312,1736358649027,-502.81,0.00010261,2]
[348156313,1736358649037,-500.0,0.00010261,2]
[348156314,1736358649047,-500.0,0.00010261,2]
[348156315,1736358649059,-500.0,0.00010261,2]
[348156316,1736358649069,-500.0,0.00010261,2]
[348156317,1736358649080,-500.0,0.00010261,2]
[348156318,1736358649089,-500.0,0.00010261,2]
[348156319,1736358649099,-500.0,0.00010261,2]
[348156320,1736358649108,-500.0,0.00010261,2]
[348156321,1736358649118,-172.58338853,0.00010261,2]
[348156322,1736358649128,-500.0,0.00010261,2]
[348156323,1736358649140,-621.0,0.00010261,2]
[348156324,1736358649149,-500.0,0.00010261,2]
[348156325,1736358649159,-500.0,0.00010261,2]
[348156326,1736358649169,-500.0,0.00010261,2]
[348156327,1736358649179,-500.0,0.00010261,2]
[348156328,1736358649189,-500.0,0.00010261,2]
[348156329,1736358649199,-500.0,0.00010261,2]
[348156330,1736358649209,-500.0,0.00010261,2]
[348156331,1736358649219,-500.0,0.00010261,2]
[348156332,1736358649229,-629.27074988,0.00010261,2]
[348156333,1736358649238,-594.0001985,0.00010261,2]
[348156334,1736358649249,-500.0,0.00010261,2]
[348156335,1736358649259,-556.90623316,0.00010261,2]
[348156336,1736358649269,-500.0,0.00010261,2]
[348156337,1736358649279,-586.07070144,0.00010261,2]
[348156338,1736358649289,-500.0,0.00010261,2]
[348156339,1736358649299,-500.0,0.00010261,2]
[348156340,1736358649309,-500.0,0.00010261,2]
[348156341,1736358649319,-500.0,0.00010261,2]
[348156342,1736358649329,-500.0,0.00010261,2]
[348156343,1736358649340,-500.0,0.00010261,2]
[348156344,1736358649350,-500.0,0.00010261,2]
[348156345,1736358649360,-500.0,0.00010261,2]
[348156346,1736358649370,-500.0,0.00010261,2]
[348156347,1736358649381,-500.0,0.00010261,2]
[348156348,1736358649395,-500.0,0.00010261,2]
[348156349,1736358649405,-506.77432237,0.00010261,2]
[348156350,1736358649415,-500.0,0.00010261,2]
[348156351,1736358649426,-500.92641991,0.00010261,2]
[348156352,1736358649435,-503.35668402,0.00010261,2]
[348156353,1736358649445,-500.0,0.00010261,2]
[348156354,1736358649455,-500.0,0.00010261,2]
[348156355,1736358649465,-500.0,0.00010261,2]
[348156356,1736358649475,-500.0,0.00010261,2]
[348156357,1736358649485,-505.24749686,0.00010261,2]
[348156358,1736358649495,-502.87022393,0.00010261,2]
[348156359,1736358649506,-500.0,0.00010261,2]
[348156360,1736358649516,-500.0,0.00010261,7]
[348156361,1736358649526,-500.0,0.00010261,2]
[348156362,1736358649536,-500.0,0.00010261,2]
[348156363,1736358649546,-500.0,0.00010261,2]
[348156364,1736358649555,-500.0,0.00010261,2]
[348156365,1736358649565,-500.0,0.00010261,2]
[348156366,1736358649575,-500.0,0.00010261,2]
[348156367,1736358649585,-500.0,0.00010261,2]
[348156368,1736358649594,-500.0,0.00010261,2]
[348156369,1736358649604,-500.0,0.00010261,2]
[348156370,1736358649613,-514.03,0.00010261,2]
[348156371,1736358649623,-500.0,0.00010261,2]
[348156372,1736358649636,-500.0,0.00010261,2]
[348156373,1736358649646,-500.0,0.00010261,2]
[348156374,1736358649656,-500.0,0.00010261,2]
[348156375,1736358649666,-500.0,0.00010261,2]
[348156376,1736358649676,-500.0,0.00010261,2]
[348156377,1736358649686,-587.98191459,0.00010261,2]
[348156378,1736358649696,-500.0,0.00010261,2]
[348156379,1736358649706,-500.0,0.00010261,2]
[348156380,1736358649715,-504.25552189,0.00010261,2]
[348156381,1736358649725,-500.0,0.00010261,2]
[348156382,1736358649735,-502.8200631,0.00010261,2]
[348156383,1736358649744,-500.0,0.00010261,2]
[348156384,1736358649755,-500.0,0.00010261,2]
[348156385,1736358649765,-500.0,0.00010261,2]
[348156386,1736358649774,-503.87556113,0.00010261,2]
[348156387,1736358649785,-500.0,0.00010261,2]
[348156388,1736358649797,-501.5934097,0.00010261,2]
[348156389,1736358649807,-500.0,0.00010261,2]
[348156390,1736358649817,-505.47459174,0.00010261,2]
[348156391,1736358649827,-502.66518148,0.00010261,2]
[348156392,1736358649837,-503.55089481,0.00010261,2]
[348156393,1736358649846,-500.0,0.00010261,2]
[348156394,1736358649856,-443.87629544,0.00010261,2]
[348156395,1736358649867,-502.22649619,0.00010261,2]
[348156396,1736358649877,-500.0,0.00010261,2]
[348156397,1736358649888,-500.0,0.00010261,2]
[348156398,1736358649899,-505.78024786,0.00010261,2]
[348156399,1736358649909,-500.0,0.00010261,2]
[348156400,1736358649919,-501.91453561,0.00010261,2]
[348156401,1736358649929,-502.20835474,0.00010261,2]
[348156402,1736358649939,-353.97745826,0.00010261,2]
[348156403,1736358649949,-505.00943469,0.00010261,2]
[348156404,1736358649959,-500.0,0.00010261,2]
[348156405,1736358649968,-500.0,0.00010261,2]
[348156406,1736358649978,-500.0,0.00010261,2]
[348156407,1736358649987,-621.73,0.00010261,2]
[348156408,1736358649998,-500.0,0.00010261,2]
[348156409,1736358650007,-500.0,0.00010261,2]
[348156410,1736358650017,-552.82716644,0.00010261,2]
[348156411,1736358650027,-501.51766145,0.00010261,2]
[348156412,1736358650037,-500.0,0.00010261,2]
[348156413,1736358650047,-500.0,0.00010261,2]
[348156414,1736358650059,-500.0,0.00010261,2]
[348156415,1736358650069,-500.0,0.00010261,2]
[348156416,1736358650079,-500.0,0.00010261,2]
[348156417,1736358650089,-503.04145965,0.00010261,2]
[348156418,1736358650099,-300.70864044,0.00010261,2]
[348156419,1736358650108,-500.0,0.00010261,2]
[348156420,1736358650118,-500.0,0.00010261,2]
[348156421,1736358650128,-514.28181499,0.00010261,2]
[348156422,1736358650139,-500.0,0.00010261,2]
[348156423,1736358650149,-500.0,0.00010261,2]
[348156424,1736358650159,-500.0,0.00010261,2]
[348156425,1736358650169,-500.0,0.00010261,2]
[348156426,1736358650179,-500.0,0.00010261,2]
[348156427,1736358650189,-232.7115894,0.00010261,2]
[348156428,1736358650199,-500.0,0.00010261,2]
[348156429,1736358650209,-500.0,0.00010261,2]
[348156430,1736358650219,-500.0,0.00010261,2]
[348156431,1736358650229,-500.0,0.00010261,2]
[348156432,1736358650239,-500.0,0.00010261,2]
[348156433,1736358650249,-500.0,0.00010261,2]
[348156434,1736358650259,-500.0,0.00010261,2]
[348156435,1736358650269,-500.0,0.00010261,2]
[348156436,1736358650279,-502.16475439,0.00010261,2]
[348156437,1736358650290,-492.31257512,0.00010261,2]
[348156438,1736358650299,-500.0,0.00010261,2]
[348156439,1736358650310,-500.0,0.00010261,2]
[348156440,1736358650319,-500.0,0.00010261,2]
[348156441,1736358650330,-554.716679,0.00010261,2]
[348156442,1736358650340,-1083.11,0.00010309,2]
[348156443,1736358650350,-516.58,0.00010309,2]
[348156444,1736358650360,-500.0,0.00010309,2]
[348156445,1736358650369,-500.0,0.00010309,2]
[348156446,1736358650379,-984.28,0.00010309,2]
[348156447,1736358650392,-1369.61,0.00010309,2]
[348156448,1736358650402,-1218.11,0.00010309,2]
[348156449,1736358650413,-914.32,0.00010309,2]
[348156450,1736358650423,-1814.27,0.00010309,2]
[348156451,1736358650433,-798.74,0.00010309,2]
[348156452,1736358650443,-3201.05,0.00010309,2]
[348156453,1736358650454,-2717.33,0.00010309,2]
[348156454,1736358650465,-500.0,0.00010309,2]
[348156455,1736358650475,-1247.08,0.00010309,2]
[348156456,1736358650486,-2263.75,0.00010309,2]
[348156457,1736358650496,-500.66150881,0.00010309,2]
[348156458,1736358650507,-500.0,0.00010309,2]
[348156459,1736358650517,-1013.56,0.00010309,2]
[348156460,1736358650527,-546.88,0.00010309,2]
[348156461,1736358650537,-959.73,0.00010309,2]
[348156462,1736358650547,-2178.58,0.00010309,2]
[348156463,1736358650557,-902.05,0.00010309,2]
[348156464,1736358650567,-1571.05,0.00010309,2]
[348156465,1736358650577,-875.85,0.00010309,2]
[348156466,1736358650587,-500.0,0.00010309,2]
[348156467,1736358650598,-503.86448063,0.0001031,2]
[348156468,1736358650608,-503.30992833,0.0001031,2]
[348156469,1736358650618,-622.10170607,0.0001031,2]
[348156470,1736358650629,-639.90165029,0.0001031,2]
[348156471,1736358650640,-198.17610873,0.0001031,2]
[348156472,1736358650650,-500.0,0.0001031,2]
[348156473,1736358650660,-501.29034013,0.0001031,2]
[348156474,1736358650670,-500.21047694,0.0001031,2]
[348156475,1736358650681,-502.02745025,0.0001031,2]
[348156476,1736358650690,-206.86468456,0.0001031,2]
[348156477,1736358650700,-500.0,0.0001031,2]
[348156478,1736358650710,-209.36669765,0.0001031,2]
[348156479,1736358650719,-500.0,0.0001031,2]
[348156480,1736358650729,-500.0,0.0001031,2]
[348156481,1736358650739,-500.0,0.0001031,2]
[348156482,1736358650749,-500.36449735,0.0001031,2]
[348156483,1736358650759,-502.51519698,0.0001031,2]
[348156484,1736358650768,-500.57455814,0.0001031,2]
[348156485,1736358650778,-501.12418719,0.0001031,2]
[348156486,1736358650787,-500.0,0.0001031,2]
[348156487,1736358650799,-500.0,0.0001031,2]
[348156488,1736358650809,-500.0,0.0001031,2]
[348156489,1736358650819,-500.21467182,0.0001031,2]
[348156490,1736358650829,-500.0,0.0001031,2]
[348156491,1736358650841,-500.64129024,0.0001031,2]
[348156492,1736358650851,-500.0,0.0001031,2]
[348156493,1736358650860,-500.0,0.0001031,2]
[348156494,1736358650872,-500.0,0.0001031,2]
[348156495,1736358650882,-500.0,0.0001031,2]
[348156496,1736358650893,-500.0,0.0001031,2]
[348156497,1736358650903,-500.0,0.0001031,2]
[348156498,1736358650912,-500.0,0.0001031,2]
[348156499,1736358650923,-500.0,0.0001031,2]
[348156500,1736358650933,-500.0,0.0001031,2]
[348156501,1736358650944,-500.0,0.0001031,2]
[348156502,1736358650955,-500.0,0.0001031,2]
[348156503,1736358650965,-502.93717511,0.0001031,2]
[348156504,1736358650975,-500.0,0.0001031,2]
[348156505,1736358650985,-500.81129647,0.0001031,2]
[348156506,1736358650994,-500.53493488,0.0001031,2]
[348156507,1736358651004,-503.74058686,0.0001031,2]
[348156508,1736358651013,-500.46047113,0.0001031,2]
[348156509,1736358651023,-301.66733362,0.0001031,2]
[348156510,1736358651033,-501.58616187,0.0001031,2]
[348156511,1736358651043,-500.0,0.0001031,2]
[348156512,1736358651053,-502.04273035,0.0001031,2]
[348156513,1736358651063,-500.0,0.0001031,2]
[348156514,1736358651073,-502.08340075,0.0001031,2]
[348156515,1736358651083,-502.82261065,0.0001031,2]
[348156516,1736358651093,-502.69058578,0.0001031,2]
[348156517,1736358651103,-503.69044292,0.0001031,2]
[348156518,1736358651114,-500.29862436,0.0001031,2]
[348156519,1736358651124,-500.0,0.0001031,2]
[348156520,1736358651134,-616.38764511,0.0001031,2]
[348156521,1736358651144,-502.19373558,0.0001031,2]
[348156522,1736358651154,-500.27013525,0.0001031,2]
[348156523,1736358651164,-500.98348293,0.0001031,2]
[348156524,1736358651175,-500.58289113,0.0001031,2]
[348156525,1736358651185,-501.55184241,0.0001031,2]
[348156526,1736358651195,-522.92083172,0.0001031,2]
[348156527,1736358651205,-501.18855224,0.0001031,2]
[348156528,1736358651372,-179.63464525,0.0001031,2]
[348156529,1736358651383,-502.1104876,0.0001031,2]
[348156530,1736358651395,-502.1991438,0.0001031,2]
[348156531,1736358651404,-502.12897634,0.0001031,2]
[348156532,1736358651414,-501.64386903,0.0001031,2]
[348156533,1736358651423,-500.23523175,0.0001031,2]
[348156534,1736358651433,-518.26542156,0.0001031,2]
[348156535,1736358651442,-500.81883492,0.0001031,2]
[348156536,1736358651451,-500.48975667,0.0001031,2]
[348156537,1736358651462,-500.45967866,0.0001031,2]
[348156538,1736358651471,-501.04386672,0.0001031,2]
[348156539,1736358651480,-500.0,0.0001031,2]
[348156540,1736358651490,-252.71006306,0.0001031,2]
[348156541,1736358651500,-1000.0,0.0001031,2]
[348156542,1736358651509,-500.88864951,0.0001031,2]
[348156543,1736358651519,-500.75073556,0.0001031,2]
[348156544,1736358651529,-501.92496728,0.0001031,2]
[348156545,1736358651539,-500.0,0.0001031,2]
[348156546,1736358651548,-1011.19,0.0001031,2]
[348156547,1736358651558,-1352.67,0.0001031,2]
[348156548,1736358651567,-878.9,0.0001031,2]
[348156549,1736358651576,-766.28,0.0001031,2]
[348156550,1736358651586,-500.0,0.0001031,2]
[348156551,1736358651595,-762.31,0.0001031,2]
[348156552,1736358651605,-2056.21,0.0001031,2]
[348156553,1736358651614,-1011.92,0.0001031,2]
[348156554,1736358651623,-500.0,0.0001031,2]
[348156555,1736358651632,-678.29,0.0001031,2]
[348156556,1736358651643,-500.0,0.00010347,2]
[348156557,1736358651652,-500.0,0.00010347,2]
[348156558,1736358651661,-500.0,0.00010347,2]
[348156559,1736358651671,-500.0,0.00010347,2]
[348156560,1736358651683,-522.19,0.00010347,2]
[348156561,1736358651692,-500.0,0.00010347,2]
[348156562,1736358651702,-500.0,0.00010347,2]
[348156563,1736358651711,-500.0,0.00010347,2]
[348156564,1736358651720,-500.0,0.00010347,2]
[348156565,1736358651730,-598.99,0.00010347,2]
[348156566,1736358651740,-500.0,0.00010347,2]
[348156567,1736358651750,-500.0,0.00010347,2]
[348156568,1736358651759,-500.0,0.00010347,2]
[348156569,1736358651768,-500.0,0.00010347,2]
[348156570,1736358651778,-500.0,0.00010347,2]
[348156571,1736358651791,-500.0,0.00010347,2]
[348156572,1736358651801,-500.0,0.00010347,2]
[348156573,1736358651811,-555.04,0.00010347,2]
[348156574,1736358651820,-500.0,0.00010347,2]
[348156575,1736358651830,-500.0,0.00010347,2]
[348156576,1736358651839,-500.0,0.00010347,2]
[348156577,1736358651851,-500.0,0.00010347,2]
[348156578,1736358651860,-500.0,0.00010347,2]
[348156579,1736358651870,-500.0,0.00010347,2]
[348156580,1736358651880,-500.0,0.00010347,2]
[348156581,1736358651891,-567.11,0.00010347,2]
[348156582,1736358651900,-737.87,0.00010347,2]
[348156583,1736358651909,-500.0,0.00010347,2]
[348156584,1736358651918,-500.0,0.00010347,2]
[348156585,1736358651927,-500.0,0.00010347,2]
[348156586,1736358651937,-500.0,0.00010347,2]
[348156587,1736358651946,-500.0,0.00010347,2]
[348156588,1736358651956,-303.46916836,0.00010347,2]
[348156589,1736358651966,-607.18,0.00010347,2]
[348156590,1736358651975,-500.0,0.00010347,2]
[348156591,1736358651985,-500.0,0.00010347,2]
[348156592,1736358651995,-500.0,0.00010347,2]
[348156593,1736358652004,-500.0,0.00010347,2]
[348156594,1736358652013,-500.0,0.00010347,2]
[348156595,1736358652022,-500.0,0.00010347,2]
[348156596,1736358652031,-500.0,0.00010347,2]
[348156597,1736358652041,-670.8,0.00010347,2]
[348156598,1736358652050,-500.0,0.00010347,2]
[348156599,1736358652060,-500.0,0.00010347,2]
[348156600,1736358652070,-500.0,0.00010347,2]
[348156601,1736358652079,-500.0,0.00010347,2]
[348156602,1736358652089,-500.0,0.00010347,2]
[348156603,1736358652098,-500.0,0.00010347,2]
[348156604,1736358652108,-500.0,0.00010347,2]
[348156605,1736358652117,-500.0,0.00010347,2]
[348156606,1736358652127,-500.0,0.00010347,2]
[348156607,1736358652138,-359.7843226,0.00010347,2]
[348156608,1736358652147,-500.0,0.00010347,2]
[348156609,1736358652157,-932.54,0.00010347,2]
[348156610,1736358652166,-500.0,0.00010347,2]
[348156611,1736358652175,-500.0,0.00010347,2]
[348156612,1736358652184,-545.36,0.00010347,2]
[348156613,1736358652193,-500.0,0.00010347,2]
[348156614,1736358652203,-500.0,0.00010347,2]
[348156615,1736358652212,-500.0,0.00010347,2]
[348156616,1736358652221,-500.0,0.00010347,2]
[348156617,1736358652230,-500.0,0.00010347,2]
[348156618,1736358652239,-1666.65,0.00010347,2]
[348156619,1736358652249,-596.42,0.00010347,2]
[348156620,1736358652258,-500.0,0.00010347,2]
[348156621,1736358652268,-500.0,0.00010347,2]
[348156622,1736358652278,-500.0,0.00010347,2]
[348156623,1736358652287,-500.0,0.00010347,2]
[348156624,1736358652296,-500.0,0.00010347,2]
[348156625,1736358652306,-509.97558534,0.00010347,2]
[348156626,1736358652315,-500.0,0.00010347,2]
[348156627,1736358652324,-500.0,0.00010347,2]
[348156628,1736358652333,-166.18496426,0.00010347,2]
[348156629,1736358652343,-967.75,0.00010347,2]
[348156630,1736358652353,-500.0,0.00010347,2]
[348156631,1736358652363,-500.0,0.00010347,2]
[348156632,1736358652372,-500.0,0.00010347,2]
[348156633,1736358652381,-500.0,0.00010347,2]
[348156634,1736358652392,-500.0,0.00010347,2]
[348156635,1736358652401,-500.0,0.00010347,2]
[348156636,1736358652411,-153.14791083,0.00010347,2]
[348156637,1736358652420,-500.0,0.00010347,2]
[348156638,1736358652430,-500.0,0.00010347,2]
[348156639,1736358652440,-500.0,0.00010347,2]
[348156640,1736358652450,-500.0,0.00010347,2]
[348156641,1736358652459,-500.0,0.00010347,2]
[348156642,1736358652469,-647.46,0.00010347,2]
[348156643,1736358652479,-500.0,0.00010347,2]
[348156644,1736358652488,-500.0,0.00010347,2]
[348156645,1736358652498,-1567.94,0.00010347,2]
[348156646,1736358652508,-3100.14,0.00010347,2]
[348156647,1736358652519,-743.069268,0.00010347,2]
[348156648,1736358652528,-500.0,0.00010347,2]
[348156649,1736358652539,-500.0,0.00010347,2]
[348156650,1736358652551,-500.0,0.00010347,2]
[348156651,1736358652560,-500.0,0.00010347,2]
[348156652,1736358652570,-183.33553344,0.00010347,2]
[348156653,1736358652580,-500.0,0.00010347,2]
[348156654,1736358652591,-661.3318,0.00010347,2]
[348156655,1736358652601,-2800.0,0.00010347,2]
[348156656,1736358652610,-577.7,0.00010347,2]
[348156657,1736358652620,-500.0,0.00010347,2]
[348156658,1736358652630,-500.0,0.00010347,2]
[348156659,1736358652641,-500.0,0.00010347,2]
[348156660,1736358652651,-500.0,0.00010347,2]
[348156661,1736358652660,-1204.5,0.00010347,2]
[348156662,1736358652670,-500.0,0.00010347,2]
[348156663,1736358652679,-263.98970967,0.00010347,2]
[348156664,1736358652689,-500.0,0.00010347,2]
[348156665,1736358652699,-2894.34,0.00010347,2]
[348156666,1736358652709,-500.0,0.00010347,2]
[348156667,1736358652719,-1392.16,0.00010347,2]
[348156668,1736358652728,-500.0,0.00010347,2]
[348156669,1736358652738,-221.70140805,0.00010347,2]
[348156670,1736358652747,-500.0,0.00010347,2]
[348156671,1736358652756,-500.0,0.00010347,2]
[348156672,1736358652765,-500.0,0.00010347,2]
[348156673,1736358652775,-500.0,0.00010347,2]
[348156674,1736358652785,-500.0,0.00010347,2]
[348156675,1736358652797,-500.0,0.00010347,2]
[348156676,1736358652806,-633.08,0.00010347,2]
[348156677,1736358652815,-2974.5,0.00010347,2]
[348156678,1736358652824,-2170.29,0.00010347,2]
[348156679,1736358652835,-500.0,0.00010347,2]
[348156680,1736358652844,-293.07896265,0.00010347,2]
[348156681,1736358652854,-500.0,0.00010347,2]
[348156682,1736358652864,-500.0,0.00010347,2]
[348156683,1736358652875,-500.0,0.00010347,2]
[348156684,1736358652885,-632.06624344,0.00010347,2]
[348156685,1736358652895,-684.22,0.00010347,2]
[348156686,1736358652905,-500.0,0.00010347,2]
[348156687,1736358652914,-500.0,0.00010347,2]
[348156688,1736358652924,-500.0,0.00010347,2]
[348156689,1736358652933,-500.0,0.00010347,2]
[348156690,1736358652943,-343.57080778,0.00010347,2]
[348156691,1736358652953,-500.0,0.00010347,2]
[348156692,1736358652962,-500.0,0.00010347,2]
[348156693,1736358652972,-1093.14,0.00010347,2]
[348156694,1736358652981,-2357.74,0.00010347,2]
[348156695,1736358652991,-500.0,0.00010347,2]
[348156696,1736358653000,-500.0,0.00010347,2]
[348156697,1736358653010,-500.0,0.00010347,2]
[348156698,1736358653019,-500.0,0.00010347,2]
[348156699,1736358653029,-500.0,0.00010347,2]
[348156700,1736358653039,-500.0,0.00010347,2]
[348156701,1736358653049,-1313.2,0.00010347,2]
[348156702,1736358653061,-500.0,0.00010347,2]
[348156703,1736358653071,-500.0,0.00010347,2]
[348156704,1736358653082,-500.0,0.00010347,2]
[348156705,1736358653091,-1234.42,0.00010347,2]
[348156706,1736358653100,-500.0,0.00010347,2]
[348156707,1736358653110,-895.52,0.00010347,2]
[348156708,1736358653120,-500.0,0.00010347,2]
[348156709,1736358653129,-500.0,0.00010347,2]
[348156710,1736358653141,-448.70156171,0.00010347,2]
[348156711,1736358653150,-500.0,0.00010347,2]
[348156712,1736358653160,-500.0,0.00010347,2]
[348156713,1736358653170,-500.0,0.00010347,2]
[348156714,1736358653180,-500.0,0.00010347,2]
[348156715,1736358653189,-500.0,0.00010347,2]
[348156716,1736358653200,-957.62,0.00010347,2]
[348156717,1736358653210,-264.75691643,0.00010347,2]
[348156718,1736358653219,-500.0,0.00010347,2]
[348156719,1736358653229,-1751.04,0.00010347,2]
[348156720,1736358653238,-2455.11,0.00010347,2]
[348156721,1736358653248,-500.0,0.00010347,2]
[348156722,1736358653258,-500.0,0.00010347,2]
[348156723,1736358653268,-500.0,0.00010347,2]
[348156724,1736358653277,-532.55,0.00010347,2]
[348156725,1736358653287,-500.0,0.00010347,2]
[348156726,1736358653296,-500.0,0.00010347,2]
[348156727,1736358653306,-500.0,0.00010347,2]
[348156728,1736358653315,-500.0,0.00010347,2]
[348156729,1736358653325,-500.0,0.00010347,2]
[348156730,1736358653334,-500.0,0.00010347,2]
[348156731,1736358653344,-500.0,0.00010347,2]
[348156732,1736358653353,-500.0,0.00010347,2]
[348156733,1736358653364,-526.01,0.00010347,2]
[348156734,1736358653373,-233.84,0.00010347,2]
[348156735,1736358653382,-500.0,0.00010347,2]
[348156736,1736358653393,-500.0,0.00010347,2]
[348156737,1736358653403,-500.0,0.00010347,2]
[348156738,1736358653412,-535.44,0.00010347,2]
[348156739,1736358653422,-500.0,0.00010347,2]
[348156740,1736358653431,-1399.45,0.00010347,2]
[348156741,1736358653440,-500.0,0.00010347,2]
[348156742,1736358653450,-207.84017639,0.00010347,2]
[348156743,1736358653459,-500.0,0.00010347,2]
[348156744,1736358653468,-682.66,0.00010347,2]
[348156745,1736358653479,-535.05,0.00010347,2]
[348156746,1736358653488,-623.67498997,0.00010347,2]
[348156747,1736358653498,-500.0,0.00010347,2]
[348156748,1736358653508,-1386.23,0.00010347,2]
[348156749,1736358653518,-500.0,0.00010347,2]
[348156750,1736358653529,-500.0,0.00010347,2]
[348156751,1736358653538,-1070.5,0.00010347,2]
[348156752,1736358653548,-500.0,0.00010347,2]
[348156753,1736358653558,-500.0,0.00010347,2]
[348156754,1736358653567,-500.0,0.00010347,2]